Workbook

Sheet المناديب_والعملاء
A1: رقم الفاتوره | B1: تصنيف الفاتوره | C1: التاريخ | D1: كود العميل | E1: اسم المندوب | F1: اسم العميل | G1: ب ك | H1: كرياتين | I1: سعر كرياتين | J1: ب و | K1: واى ف | L1: واى ش | M1: سعر الواى | N1: ب ج | O1: جينر ش | P1: جينر م | Q1: سعر الجينر | R1: اجمالى كرياتين | S1: اجمالى واى | T1: اجمالى الجينر | U1: الاجمالى | V1: المبلغ المتحصل | W1: المؤجل
A2: 123 | B2: بيع | C2: 1900-02-14 | D2: 100 | E2: =VLOOKUP(Table1[[#This Row],[كود العميل]],الاكواد!C:D,2,0) -> محمد همام | F2: =VLOOKUP(Table1[[#This Row],[كود العميل]],الاكواد!A:B,2,0) -> nbs | G2: 1 | H2: 1 | I2: 200 | J2: 1 | L2: 1 | M2: 300 | O2: 1 | P2: 1 | Q2: 675 | R2: =SUM(H2*I2) -> 200 | S2: =SUM(K2*M2,L2*M2) -> 300 | T2: =SUM(O2*Q2,P2*Q2) -> 1350 | U2: =SUM(R2+S2+T2) -> 1850 | W2: =SUM(V2-U2) -> -1850
A3: 155 | B3: بيع | C3: 1900-06-04 | D3: 503 | E3: =VLOOKUP(Table1[[#This Row],[كود العميل]],الاكواد!C:D,2,0) -> محمد حسن | F3: =VLOOKUP(Table1[[#This Row],[كود العميل]],الاكواد!A:B,2,0) -> احمد التونى 360 | G3: 1 | H3: 1 | I3: 200 | J3: 1 | L3: 1 | M3: 300 | O3: 1 | P3: 1 | Q3: 675 | R3: =SUM(H3*I3) -> 200 | S3: =SUM(K3*M3,L3*M3) -> 300 | T3: =SUM(O3*Q3,P3*Q3) -> 1350 | U3: =SUM(R3+S3+T3) -> 1850 | W3: =SUM(V3-U3) -> -1850
A4: 135 | B4: بيع | C4: 1900-01-04 | D4: 300 | E4: =VLOOKUP(Table1[[#This Row],[كود العميل]],الاكواد!C:D,2,0) -> عبد المنعم | F4: =VLOOKUP(Table1[[#This Row],[كود العميل]],الاكواد!A:B,2,0) -> ارنولد جيم / ابراهيم | G4: 1 | H4: 1 | I4: 200 | J4: 1 | L4: 1 | M4: 300 | O4: 1 | P4: 1 | Q4: 675 | R4: =SUM(H4*I4) -> 200 | S4: =SUM(K4*M4,L4*M4) -> 300 | T4: =SUM(O4*Q4,P4*Q4) -> 1350 | U4: =SUM(R4+S4+T4) -> 1850 | W4: =SUM(V4-U4) -> -1850
A5: 22 | B5: مرتجع | C5: 1900-01-12 | D5: 105 | E5: =VLOOKUP(Table1[[#This Row],[كود العميل]],الاكواد!C:D,2,0) -> محمد همام | F5: =VLOOKUP(Table1[[#This Row],[كود العميل]],الاكواد!A:B,2,0) -> الصخرة المقطم عادل | G5: 1 | H5: -1 | I5: 200 | J5: 1 | L5: -1 | M5: 300 | P5: -1 | Q5: 675 | R5: =SUM(H5*I5) -> -200 | S5: =SUM(K5*M5,L5*M5) -> -300 | T5: =SUM(O5*Q5,P5*Q5) -> -675 | U5: =SUM(R5+S5+T5) -> -1175 | W5: =SUM(V5-U5) -> 1175
A6: 25 | B6: مرتجع | C6: 1900-01-13 | D6: 106 | E6: =VLOOKUP(Table1[[#This Row],[كود العميل]],الاكواد!C:D,2,0) -> محمد همام | F6: =VLOOKUP(Table1[[#This Row],[كود العميل]],الاكواد!A:B,2,0) -> النمر الأسود | H6: -1 | I6: 200 | L6: -1 | M6: 300 | P6: -1 | Q6: 675 | R6: =SUM(H6*I6) -> -200 | S6: =SUM(K6*M6,L6*M6) -> -300 | T6: =SUM(O6*Q6,P6*Q6) -> -675 | U6: =SUM(R6+S6+T6) -> -1175 | W6: =SUM(V6-U6) -> 1175
A7: 24 | B7: مرتجع | C7: 1900-01-15 | D7: 107 | E7: =VLOOKUP(Table1[[#This Row],[كود العميل]],الاكواد!C:D,2,0) -> محمد همام | F7: =VLOOKUP(Table1[[#This Row],[كود العميل]],الاكواد!A:B,2,0) -> اليكس جيم / الهرم | H7: -1 | I7: 200 | L7: -1 | M7: 300 | P7: -1 | Q7: 675 | R7: =SUM(H7*I7) -> -200 | S7: =SUM(K7*M7,L7*M7) -> -300 | T7: =SUM(O7*Q7,P7*Q7) -> -675 | U7: =SUM(R7+S7+T7) -> -1175 | W7: =SUM(V7-U7) -> 1175

Sheet الاكواد
A1: الكود | B1: اسم العميل | C1: الكود2 | D1: اسم المندوب | F1: ابراهيم | I1: محمد همام | L1: عبد المنعم | O1: محمد حسن | R1: عملاء بدون مديونيه | V1: سيد امين | Y1: عز الدين
A2: 1 | B2: احمد الناصريه | C2: 1 | D2: ابرهيم فرج | F2: اسم العميل | G2: الكود | I2: اسم العميل | J2: الكود | L2: اسم العميل | M2: الكود | O2: اسم العميل | P2: الكود | R2: اسم العميل | S2: الكود | T2: اسم المندوب | V2: اسم العميل | W2: الكود | Y2: اسم العميل | Z2: الكود
A3: 2 | B3: احمد رجب | C3: 2 | D3: ابرهيم فرج | F3: احمد الناصريه | G3: 1 | I3: nbs | J3: 100 | L3: ارنولد جيم / ابراهيم | M3: 300 | O3: 500 | P3: محمد عادل / الدقى | R3: اسلام الكابتن | S3: 1000 | T3: ابرهيم فرج | V3: احمد ابو غرب | W3: 700 | Y3: بلال طنطا | Z3: 900
A4: 3 | B4: اشرف حجازى | C4: 3 | D4: ابرهيم فرج | F4: احمد رجب | G4: 2 | I4: ارنولد جيم / شبرا | J4: 101 | L4: ارنولد جيم / شادى | M4: 301 | O4: 501 | P4: xxx | R4: سبورت الدوار | S4: 1001 | T4: ابرهيم فرج | V4: بكرى | W4: 701 | Y4: حسام سلامه | Z4: 901
A5: 4 | B5: اشرف في اى بى | C5: 4 | D5: ابرهيم فرج | F5: اشرف حجازى | G5: 3 | I5: اشرف التجمع | J5: 102 | L5: اشرف راضى | M5: 302 | O5: 502 | P5: ابراهيم الويلى | R5: شريف انريجى جيم | S5: 1002 | T5: ابرهيم فرج | V5: خليل السيد | W5: 702 | Y5: عماد الكردى | Z5: 902
A6: 5 | B6: اكس جيم | C6: 5 | D6: ابرهيم فرج | F6: اشرف في اى بى | G6: 4 | I6: اكتيف جيم | J6: 103 | L6: اكتيف جيم / محمد سامى | M6: 303 | O6: 503 | P6: احمد التونى 360 | R6: صبحى ندا | S6: 1003 | T6: ابرهيم فرج | V6: ستور باور ليفت | W6: 703 | Y6: محمد قاسم | Z6: 903
A7: 6 | B7: السلام جيم / المنصوره | C7: 6 | D7: ابرهيم فرج | F7: اكس جيم | G7: 5 | I7: السويسى جيم | J7: 104 | L7: اكسجين سبليمنت / احمد هلال | M7: 304 | O7: 504 | P7: جينس جيم | R7: محمد إبراهيم | S7: 1004 | T7: ابرهيم فرج | V7: عمرو الصعيدى | W7: 704 | Y7: محمد نبيل | Z7: 904
A8: 7 | B8: المنيسى | C8: 7 | D8: ابرهيم فرج | F8: السلام جيم / المنصوره | G8: 6 | I8: الصخرة المقطم عادل | J8: 105 | L8: الابطال جيم / طلعت | M8: 305 | O8: 505 | P8: احمد وريور مدينه نصر | R8: محمد صابر | S8: 1005 | T8: محمد همام | V8: ك.عمر | W8: 705 | Y8: محمد اسيوط | Z8: 905
A9: 8 | B9: اليكس جيم | C9: 8 | D9: ابرهيم فرج | F9: المنيسى | G9: 7 | I9: النمر الأسود | J9: 106 | L9: البرعى جيم / احمد صابر | M9: 306 | O9: 506 | P9: اكتف مدينة نصر | V9: محمد حسان | W9: 706
A10: 9 | B10: اوكسجين /حسام | C10: 9 | D10: ابرهيم فرج | F10: اليكس جيم | G10: 8 | I10: اليكس جيم / الهرم | J10: 107 | L10: البطل الدولى / احمد مصطفى | M10: 307 | O10: 507 | P10: غوريلا جيم | V10: محمد رافت | W10: 707 | Y10: مصطفى الكاشف | Z10: 907
A11: 10 | B11: اوكسجين/ كريم | C11: 10 | D11: ابرهيم فرج | F11: اوكسجين /حسام | G11: 9 | I11: انفنتى جيم / شبرا | J11: 108 | L11: البطل الدولى / سيد | M11: 308 | O11: 508 | P11: امير هاك | V11: مصطفى حديده | W11: 708 | Y11: رؤف سوهاج | Z11: 908
A12: 11 | B12: بلو اب | C12: 11 | D12: ابرهيم فرج | F12: اوكسجين/ كريم | G12: 10 | I12: اولمبيا جيم | J12: 109 | L12: الدبابه جيم / اسلام مصلحى | M12: 309 | O12: 509 | P12: اندرو اوليمبك جيم | V12: هانى سعد | W12: 709 | Y12: خالد بسيونى / الاسماعليه | Z12: 909
A13: 12 | B13: بيتر | C13: 12 | D13: ابرهيم فرج | F13: بلو اب | G13: 11 | I13: ايسلند التجمع | J13: 110 | L13: الرواد جيم / على جمال | M13: 310 | O13: 510 | P13: انس لايف جيم | V13: احمد عبد العليم | W13: 710 | Y13: عمرو طلبيهى | Z13: 910
A14: 13 | B14: توب جيم | C14: 13 | D14: ابرهيم فرج | F14: بيتر | G14: 12 | I14: باباى جيم | J14: 111 | L14: الشديد جيم / محمد الشديد | M14: 311 | O14: 511 | P14: انفنتى مجدى | V14: ستور مصيل هاوس | W14: 711 | Y14: محمد المصرى | Z14: 911
A15: 14 | B15: توب جيم | C15: 14 | D15: ابرهيم فرج | F15: توب جيم | G15: 13 | I15: بالك جيم / شبرا | J15: 112 | L15: الموافى جيم /امير | M15: 312 | O15: 512 | P15: اولمبيك جيم النعام | Y15: احمد العشرى | Z15: 912
A16: 15 | B16: تيتانيوم جيم | C16: 15 | D16: ابرهيم فرج | F16: توب جيم | G16: 14 | I16: باور جيم / محمد صالح | J16: 113 | L16: الموافى جيم /سامح | M16: 313 | O16: 513 | P16: باتستا جيم | Y16: احمد على | Z16: 913
A17: 16 | B17: ثرى ام | C17: 16 | D17: ابرهيم فرج | F17: تيتانيوم جيم | G17: 15 | I17: باين اكتوبر | J17: 114 | L17: الهضبه / محمد السيد | M17: 314 | O17: 514 | P17: باور عين شمس كريم | Y17: اسلام المنصوره | Z17: 914
A18: 17 | B18: جلال النشوى | C18: 17 | D18: ابرهيم فرج | F18: ثرى ام | G18: 16 | I18: برو جيم / شادى | J18: 115 | L18: انرجى جيم / حمدى | M18: 315 | O18: 515 | P18: باور هاوس | Y18: كابتن ارميا | Z18: 915
A19: 18 | B19: جيم السلام | C19: 18 | D19: ابرهيم فرج | F19: جلال النشوى | G19: 17 | I19: بروتين هاوس /الهرم | J19: 116 | L19: باور جيم / اسلام | M19: 316 | O19: 516 | P19: برفكت جسر السويس
A20: 19 | B20: حسام بيج جيم | C20: 19 | D20: ابرهيم فرج | F20: جيم السلام | G20: 18 | I20: بروماكس جيم / المعادى | J20: 117 | L20: باور جيم / محمد رجب | M20: 317 | O20: 517 | P20: برفكت مدينه نصر
A21: 20 | B21: روك جيم | C21: 20 | D21: ابرهيم فرج | F21: حسام بيج جيم | G21: 19 | I21: بلاك جيم الخصوص | J21: 118 | L21: باور هاوس / محمود عبد الله | M21: 318 | O21: 518 | P21: بلال جولف
A22: 21 | B22: زيزو جيم | C22: 21 | D22: ابرهيم فرج | F22: روك جيم | G22: 20 | I22: بلانت جيم شبرا | J22: 119 | L22: بشوى جيم / بشوى | M22: 319 | O22: 519 | P22: بور جيم / مايكل
A23: 22 | B23: زين جيم | C23: 22 | D23: ابرهيم فرج | F23: زيزو جيم | G23: 21 | I23: بوب جيم | J23: 120 | L23: بي سترونج /احمد شتله | M23: 320 | O23: 520 | P23: بيبو جيم شبرا
A24: 23 | B24: سامح عبدين | C24: 23 | D24: ابرهيم فرج | F24: زين جيم | G24: 22 | I24: بيور حسن محمد | J24: 121 | L24: بيج جيم / توفيق فريد | M24: 321 | O24: 521 | P24: بيجورى جيم / ابراهيم
A25: 24 | B25: سعيد الفقى ( تاجر ) | C25: 24 | D25: ابرهيم فرج | F25: سامح عبدين | G25: 23 | I25: بيور زغلول | J25: 122 | L25: جاكور جيم / حسام منصور | M25: 322 | O25: 522 | P25: مانستر جيم / ك.مينا
A26: 25 | B26: شعبان المعموره | C26: 25 | D26: ابرهيم فرج | F26: سعيد الفقى ( تاجر ) | G26: 24 | I26: تايم فتنس جيم | J26: 123 | L26: جراند جيم / سامح عبد الله | M26: 323 | O26: 523 | P26: تاتنيوم جيم /ايمن
A27: 26 | B27: عبد الحميد عبد الباقى | C27: 26 | D27: ابرهيم فرج | F27: شعبان المعموره | G27: 25 | I27: تكنو جيم / شبرا | J27: 124 | L27: جولدن جيم / وائل | M27: 324 | O27: 524 | P27: تاتينيوم كريم
A28: 27 | B28: عبدالرحمن اسبورت | C28: 27 | D28: ابرهيم فرج | F28: عبد الحميد عبد الباقى | G28: 26 | I28: توب جيم / شبرا | J28: 125 | L28: جولدن جيم /حامد الرشيدى | M28: 325 | O28: 525 | P28: تايم جيم
A29: 28 | B29: عزام جيم المعمورة | C29: 28 | D29: ابرهيم فرج | F29: عبدالرحمن اسبورت | G29: 27 | I29: تورنيدو شبرا | J29: 126 | L29: جيم الهضبه / محمد السيد | M29: 326 | O29: 526 | P29: حاتم جيم
A30: 29 | B30: فولكانو جيم | C30: 29 | D30: ابرهيم فرج | F30: عزام جيم المعمورة | G30: 28 | I30: توينز احمد سعيد | J30: 127 | L30: جيم نادى الابطال / محمد على | M30: 327 | O30: 527 | P30: حسن باور الاربعين
A31: 30 | B31: ك محمد هلالى | C31: 30 | D31: ابرهيم فرج | F31: فولكانو جيم | G31: 29 | I31: جراند جيم / ك وليد | J31: 128 | L31: حورس جيم / ضياء | M31: 328 | O31: 528 | P31: حلوانى جيم
A32: 31 | B32: كامل بيج جيم | C32: 31 | D32: ابرهيم فرج | F32: ك محمد هلالى | G32: 30 | I32: جلاكسى جيم شبرا | J32: 129 | L32: حورس جيم / محروس | M32: 329 | O32: 529 | P32: حماده supplyment
A33: 32 | B33: كريم لايون | C33: 32 | D33: ابرهيم فرج | F33: كامل بيج جيم | G33: 31 | I33: جو جيم /15 مايو | J33: 130 | L33: زيدان جيم / عمرو زيدان | M33: 330 | O33: 530 | P33: حماده بور جيم الفيوم
A34: 33 | B34: ليو جيم | C34: 33 | D34: ابرهيم فرج | F34: كريم لايون | G34: 32 | I34: جى اتش / الظاهر | J34: 131 | L34: سكس باك / ابراهيم زايد | M34: 331 | O34: 531 | P34: روك جيم /شبرا احمد متولى
A35: 34 | B35: مارشال جيم | C35: 34 | D35: ابرهيم فرج | F35: ليو جيم | G35: 33 | I35: روك اريزونا | J35: 132 | L35: سمارت جيم / ابراهيم | M35: 332 | O35: 532 | P35: سمارت الميرغنى
A36: 35 | B36: مانو جيم | C36: 35 | D36: ابرهيم فرج | F36: مارشال جيم | G36: 34 | I36: روك اللبينى | J36: 133 | L36: سماش جيم / شريف عيد | M36: 333 | O36: 533 | P36: سوبر انفنتى النعام
A37: 36 | B37: محمد أبوالمعاطى | C37: 36 | D37: ابرهيم فرج | F37: مانو جيم | G37: 35 | I37: ريلاكس جيم | J37: 134 | L37: بي سترونج /احمد شتله | M37: 334 | O37: 534 | P37: سولى ستور
A38: 37 | B38: محمد العوايد | C38: 37 | D38: ابرهيم فرج | F38: محمد أبوالمعاطى | G38: 36 | I38: سولدر جيم | J38: 135 | L38: شتات جيم / ابراهيم شتات | M38: 335 | O38: 535 | P38: سيف روك
A39: 38 | B39: محمد ممدوح | C39: 38 | D39: ابرهيم فرج | F39: محمد العوايد | G39: 37 | I39: فالكون الخصوص | J39: 136 | L39: عمرو ابو النوادر | M39: 336 | O39: 536 | P39: شداد جيم
A40: 39 | B40: محمود على | C40: 39 | D40: ابرهيم فرج | F40: محمد ممدوح | G40: 38 | I40: فانتستيك جوده | J40: 137 | L40: فتنس تايم جيم / احمد امين | M40: 337 | O40: 537 | P40: طقوش اينرجى
A41: 40 | B41: مدنى جيم | C41: 40 | D41: ابرهيم فرج | F41: محمود على | G41: 39 | I41: فايتر جيم | J41: 138 | L41: فتنس جيم / احمد اشرف | M41: 338 | O41: 538 | P41: عاصم استيشن
A42: 41 | B42: مركز شباب العمراوى | C42: 41 | D42: ابرهيم فرج | F42: مدنى جيم | G42: 40 | I42: فتنس جيم / شبرا الخيمه | J42: 139 | L42: فرى جيم / محمد العزازى | M42: 339 | O42: 539 | P42: عباس تايتنيوم
A43: 42 | B43: مسعود ميت غمر | C43: 42 | D43: ابرهيم فرج | F43: مركز شباب العمراوى | G43: 41 | I43: فوريو جيم / محمد جمال | J43: 140 | L43: قتنس جيم / بدر جمعه | M43: 340 | O43: 540 | P43: عبد الرحمن شيكاغو
A44: 43 | B44: نور شاكر | C44: 43 | D44: ابرهيم فرج | F44: مسعود ميت غمر | G44: 42 | I44: كومندوز جيم | J44: 141 | L44: ك.احمد السيد | M44: 341 | O44: 541 | P44: عبد الرحيم /عين شمس
A45: 44 | B45: هيرو جيم | C45: 44 | D45: ابرهيم فرج | F45: نور شاكر | G45: 43 | I45: ليو جيم | J45: 142 | L45: ك.احمد جعفر | M45: 342 | O45: 542 | P45: عبدالرحمن بى اند بى
A46: 45 | B46: وليد يحى | C46: 45 | D46: ابرهيم فرج | F46: هيرو جيم | G46: 44 | I46: محمد الخواص | J46: 143 | L46: ك.رفاعى | M46: 343 | O46: 543 | P46: عبده حماده / تاجر
A47: 100 | B47: nbs | C47: 100 | D47: محمد همام | F47: وليد يحى | G47: 45 | I47: محمد صابر | J47: 144 | L47: كريم المعصراوى | M47: 344 | O47: 544 | P47: علاء جولف
A48: 101 | B48: ارنولد جيم / شبرا | C48: 101 | D48: محمد همام | F48: killer / علاء | G48: 46 | I48: محمد فلفل | J48: 145 | L48: محمود عبد البر | M48: 345 | O48: 545 | P48: عمرو اى جيم
A49: 102 | B49: اشرف التجمع | C49: 102 | D49: محمد همام | F49: اسكوربيون جيم | G49: 47 | I49: مستر اولمبيا | J49: 146 | L49: مركز الحياه /يسرى | M49: 346 | O49: 546 | P49: عونى /تاجر
A50: 103 | B50: اكتيف جيم | C50: 103 | D50: محمد همام | F50: شريف بيست فيول | G50: 48 | I50: مهدى جيم | J50: 147 | L50: مستر جيم / احمد جوده | M50: 347 | O50: 547 | P50: فتنس جيم /علاء
A51: 104 | B51: السويسى جيم | C51: 104 | D51: محمد همام | I51: مو ستور | J51: 148 | L51: مودرن جيم / حسام | M51: 348 | O51: 548 | P51: فرماوى جيم
A52: 105 | B52: الصخرة المقطم عادل | C52: 105 | D52: محمد همام | I52: هامر المقطم | J52: 149 | L52: نادى الحادى عشر / محمد عباس | M52: 349 | O52: 549 | P52: فلكس جيم / المرج
A53: 106 | B53: النمر الأسود | C53: 106 | D53: محمد همام | I53: هامر الهرم | J53: 150 | L53: هاى جيم / رضوان علام | M53: 350 | O53: 550 | P53: عصام تاجر
A54: 107 | B54: اليكس جيم / الهرم | C54: 107 | D54: محمد همام | I54: هامر جيم / عاطف | J54: 151 | L54: هيروز جيم / حسام جلال | M54: 351 | O54: 551 | P54: لايف جيم / محمد النمر
A55: 108 | B55: انفنتى جيم / شبرا | C55: 108 | D55: محمد همام | I55: ورلد شبرا | J55: 152 | L55: ايرون جيم / رضا زكريا | M55: 352 | O55: 552 | P55: ماسل تاون
A56: 109 | B56: اولمبيا جيم | C56: 109 | D56: محمد همام | I56: برو حلوان | J56: 153 | L56: فورما جيم | M56: 353 | O56: 553 | P56: ماكس قباء
A57: 110 | B57: ايسلند التجمع | C57: 110 | D57: محمد همام | I57: ميشو حلوان | J57: 154 | O57: 554 | P57: مان سبورت /باسم
A58: 111 | B58: باباى جيم | C58: 111 | D58: محمد همام | I58: حجاج جيم / الهرم | J58: 155 | O58: 555 | P58: مايكل احمد عصمت
A59: 112 | B59: بالك جيم / شبرا | C59: 112 | D59: محمد همام | I59: حجاج جيم / الضاهر | J59: 156 | O59: 556 | P59: مايكل بور النزهة
A60: 113 | B60: باور جيم / محمد صالح | C60: 113 | D60: محمد همام | I60: بلال دار السلام | J60: 157 | O60: 557 | P60: محمد ابراهيم عين شمس
A61: 114 | B61: باين اكتوبر | C61: 114 | D61: محمد همام | I61: مصطفى النشار | J61: 158 | O61: 558 | P61: محمد اكشن شبرا
A62: 115 | B62: برو جيم / شادى | C62: 115 | D62: محمد همام | I62: دكتور جيم | J62: 159 | O62: 559 | P62: محمد ترنسفورمر
A63: 116 | B63: بروتين هاوس /الهرم | C63: 116 | D63: محمد همام | I63: هالك اسلام | J63: 160 | O63: 560 | P63: محمد سعد ديزل
A64: 117 | B64: بروماكس جيم / المعادى | C64: 117 | D64: محمد همام | I64: ابانوب شبرا | J64: 161 | O64: 561 | P64: محمد لاست
A65: 118 | B65: بلاك جيم الخصوص | C65: 118 | D65: محمد همام | I65: ماصل زون | J65: 162 | O65: 562 | P65: محمد لايف جيم
A66: 119 | B66: بلانت جيم شبرا | C66: 119 | D66: محمد همام | I66: بولت جيم | J66: 163 | O66: 563 | P66: محمود تارجت
A67: 120 | B67: بوب جيم | C67: 120 | D67: محمد همام | O67: 564 | P67: هانجرى جيم / ضياء
A68: 121 | B68: بيور حسن محمد | C68: 121 | D68: محمد همام | O68: 565 | P68: وريور جيم محمود
A69: 122 | B69: بيور زغلول | C69: 122 | D69: محمد همام | O69: 566 | P69: ياسر عتبه
A70: 123 | B70: تايم فتنس جيم | C70: 123 | D70: محمد همام | O70: 567 | P70: يوسف بلاتنيوم النعام
A71: 124 | B71: تكنو جيم / شبرا | C71: 124 | D71: محمد همام | O71: 568 | P71: يوسف سيكلس
A72: 125 | B72: توب جيم / شبرا | C72: 125 | D72: محمد همام | O72: 569 | P72: يوسف ورلد مدينة نصر
A73: 126 | B73: تورنيدو شبرا | C73: 126 | D73: محمد همام | O73: 570 | P73: يونان جيم
A74: 127 | B74: توينز احمد سعيد | C74: 127 | D74: محمد همام | O74: 571 | P74: سنتر سبيكو
A75: 128 | B75: جراند جيم / ك وليد | C75: 128 | D75: محمد همام | O75: 572 | P75: الديب جيم
A76: 129 | B76: جلاكسى جيم شبرا | C76: 129 | D76: محمد همام | O76: 573 | P76: دكتور امير
A77: 130 | B77: جو جيم /15 مايو | C77: 130 | D77: محمد همام | O77: 574 | P77: اكتيف جيم / محمد عبده
A78: 131 | B78: جى اتش / الظاهر | C78: 131 | D78: محمد همام | O78: 575 | P78: تاتنيوم الحرس
A79: 132 | B79: روك اريزونا | C79: 132 | D79: محمد همام | O79: 576 | P79: بلاك جيم / ك.محمد
A80: 133 | B80: روك اللبينى | C80: 133 | D80: محمد همام | O80: 577 | P80: ليفل جيم / ك احمد
A81: 134 | B81: ريلاكس جيم | C81: 134 | D81: محمد همام
A82: 135 | B82: سولدر جيم | C82: 135 | D82: محمد همام
A83: 136 | B83: فالكون الخصوص | C83: 136 | D83: محمد همام
A84: 137 | B84: فانتستيك جوده | C84: 137 | D84: محمد همام
A85: 138 | B85: فايتر جيم | C85: 138 | D85: محمد همام
A86: 139 | B86: فتنس جيم / شبرا الخيمه | C86: 139 | D86: محمد همام
A87: 140 | B87: فوريو جيم / محمد جمال | C87: 140 | D87: محمد همام
A88: 141 | B88: كومندوز جيم | C88: 141 | D88: محمد همام
A89: 142 | B89: ليو جيم | C89: 142 | D89: محمد همام
A90: 143 | B90: محمد الخواص | C90: 143 | D90: محمد همام
A91: 144 | B91: محمد صابر | C91: 144 | D91: محمد همام
A92: 145 | B92: محمد فلفل | C92: 145 | D92: محمد همام
A93: 146 | B93: مستر اولمبيا | C93: 146 | D93: محمد همام
A94: 147 | B94: مهدى جيم | C94: 147 | D94: محمد همام
A95: 148 | B95: مو ستور | C95: 148 | D95: محمد همام
A96: 149 | B96: هامر المقطم | C96: 149 | D96: محمد همام
A97: 150 | B97: هامر الهرم | C97: 150 | D97: محمد همام
A98: 151 | B98: هامر جيم / عاطف | C98: 151 | D98: محمد همام
A99: 152 | B99: ورلد شبرا | C99: 152 | D99: محمد همام
A100: 153 | B100: برو حلوان | C100: 153 | D100: محمد همام
A101: 154 | B101: ميشو حلوان | C101: 154 | D101: محمد همام
A102: 300 | B102: ارنولد جيم / ابراهيم | C102: 300 | D102: عبد المنعم
A103: 301 | B103: ارنولد جيم / شادى | C103: 301 | D103: عبد المنعم
A104: 302 | B104: اشرف راضى | C104: 302 | D104: عبد المنعم
A105: 303 | B105: اكتيف جيم / محمد سامى | C105: 303 | D105: عبد المنعم
A106: 304 | B106: اكسجين سبليمنت / احمد هلال | C106: 304 | D106: عبد المنعم
A107: 305 | B107: الابطال جيم / طلعت | C107: 305 | D107: عبد المنعم
A108: 306 | B108: البرعى جيم / احمد صابر | C108: 306 | D108: عبد المنعم
A109: 307 | B109: البطل الدولى / احمد مصطفى | C109: 307 | D109: عبد المنعم
A110: 308 | B110: البطل الدولى / سيد | C110: 308 | D110: عبد المنعم
A111: 309 | B111: الدبابه جيم / اسلام مصلحى | C111: 309 | D111: عبد المنعم
A112: 310 | B112: الرواد جيم / على جمال | C112: 310 | D112: عبد المنعم
A113: 311 | B113: الشديد جيم / محمد الشديد | C113: 311 | D113: عبد المنعم
A114: 312 | B114: الموافى جيم /امير | C114: 312 | D114: عبد المنعم
A115: 313 | B115: الموافى جيم /سامح | C115: 313 | D115: عبد المنعم
A116: 314 | B116: الهضبه / محمد السيد | C116: 314 | D116: عبد المنعم
A117: 315 | B117: انرجى جيم / حمدى | C117: 315 | D117: عبد المنعم
A118: 316 | B118: باور جيم / اسلام | C118: 316 | D118: عبد المنعم
A119: 317 | B119: باور جيم / محمد رجب | C119: 317 | D119: عبد المنعم
A120: 318 | B120: باور هاوس / محمود عبد الله | C120: 318 | D120: عبد المنعم
A121: 319 | B121: بشوى جيم / بشوى | C121: 319 | D121: عبد المنعم
A122: 320 | B122: بي سترونج /احمد شتله | C122: 320 | D122: عبد المنعم
A123: 321 | B123: بيج جيم / توفيق فريد | C123: 321 | D123: عبد المنعم
A124: 322 | B124: جاكور جيم / حسام منصور | C124: 322 | D124: عبد المنعم
A125: 323 | B125: جراند جيم / سامح عبد الله | C125: 323 | D125: عبد المنعم
A126: 324 | B126: جولدن جيم / وائل | C126: 324 | D126: عبد المنعم
A127: 325 | B127: جولدن جيم /حامد الرشيدى | C127: 325 | D127: عبد المنعم
A128: 326 | B128: جيم الهضبه / محمد السيد | C128: 326 | D128: عبد المنعم
A129: 327 | B129: جيم نادى الابطال / محمد على | C129: 327 | D129: عبد المنعم
A130: 328 | B130: حورس جيم / ضياء | C130: 328 | D130: عبد المنعم
A131: 329 | B131: حورس جيم / محروس | C131: 329 | D131: عبد المنعم
A132: 330 | B132: زيدان جيم / عمرو زيدان | C132: 330 | D132: عبد المنعم
A133: 331 | B133: سكس باك / ابراهيم زايد | C133: 331 | D133: عبد المنعم
A134: 332 | B134: سمارت جيم / ابراهيم | C134: 332 | D134: عبد المنعم
A135: 333 | B135: سماش جيم / شريف عيد | C135: 333 | D135: عبد المنعم
A136: 334 | B136: بي سترونج /احمد شتله | C136: 334 | D136: عبد المنعم
A137: 335 | B137: شتات جيم / ابراهيم شتات | C137: 335 | D137: عبد المنعم
A138: 336 | B138: عمرو ابو النوادر | C138: 336 | D138: عبد المنعم
A139: 337 | B139: فتنس تايم جيم / احمد امين | C139: 337 | D139: عبد المنعم
A140: 338 | B140: فتنس جيم / احمد اشرف | C140: 338 | D140: عبد المنعم
A141: 339 | B141: فرى جيم / محمد العزازى | C141: 339 | D141: عبد المنعم
A142: 340 | B142: قتنس جيم / بدر جمعه | C142: 340 | D142: عبد المنعم
A143: 341 | B143: ك.احمد السيد | C143: 341 | D143: عبد المنعم
A144: 342 | B144: ك.احمد جعفر | C144: 342 | D144: عبد المنعم
A145: 343 | B145: ك.رفاعى | C145: 343 | D145: عبد المنعم
A146: 344 | B146: كريم المعصراوى | C146: 344 | D146: عبد المنعم
A147: 345 | B147: محمود عبد البر | C147: 345 | D147: عبد المنعم
A148: 346 | B148: مركز الحياه /يسرى | C148: 346 | D148: عبد المنعم
A149: 347 | B149: مستر جيم / احمد جوده | C149: 347 | D149: عبد المنعم
A150: 348 | B150: مودرن جيم / حسام | C150: 348 | D150: عبد المنعم
A151: 349 | B151: نادى الحادى عشر / محمد عباس | C151: 349 | D151: عبد المنعم
A152: 350 | B152: هاى جيم / رضوان علام | C152: 350 | D152: عبد المنعم
A153: 351 | B153: هيروز جيم / حسام جلال | C153: 351 | D153: عبد المنعم
A154: 500 | B154: محمد عادل / الدقى | C154: 500 | D154: عبد الرحمن
A155: 46 | B155: killer / علاء | C155: 46 | D155: ابرهيم فرج
A156: 352 | B156: ايرون جيم / رضا زكريا | C156: 352 | D156: عبد المنعم
A157: 501 | B157: xxx | C157: 501 | D157: محمد حسن
A158: 502 | B158: ابراهيم الويلى | C158: 502 | D158: محمد حسن
A159: 503 | B159: احمد التونى 360 | C159: 503 | D159: محمد حسن
A161: 505 | B161: احمد وريور مدينه نصر | C161: 505 | D161: محمد حسن
A162: 506 | B162: اكتف مدينة نصر | C162: 506 | D162: محمد حسن
A163: 507 | B163: غوريلا جيم | C163: 507 | D163: محمد حسن
A164: 508 | B164: امير هاك | C164: 508 | D164: محمد حسن
A165: 509 | B165: اندرو اوليمبك جيم | C165: 509 | D165: محمد حسن
A166: 510 | B166: انس لايف جيم | C166: 510 | D166: محمد حسن
A167: 511 | B167: انفنتى مجدى | C167: 511 | D167: محمد حسن
A168: 512 | B168: اولمبيك جيم النعام | C168: 512 | D168: محمد حسن
A169: 513 | B169: باتستا جيم | C169: 513 | D169: محمد حسن
A170: 514 | B170: باور عين شمس كريم | C170: 514 | D170: محمد حسن
A171: 515 | B171: باور هاوس | C171: 515 | D171: محمد حسن
A172: 516 | B172: برفكت جسر السويس | C172: 516 | D172: محمد حسن
A173: 517 | B173: برفكت مدينه نصر | C173: 517 | D173: محمد حسن
A174: 518 | B174: بلال جولف | C174: 518 | D174: محمد حسن
A175: 519 | B175: بور جيم / مايكل | C175: 519 | D175: محمد حسن
A176: 520 | B176: بيبو جيم شبرا | C176: 520 | D176: محمد حسن
A177: 521 | B177: بيجورى جيم / ابراهيم | C177: 521 | D177: محمد حسن
A178: 522 | B178: مانستر جيم / ك.مينا | C178: 522 | D178: محمد حسن
A179: 523 | B179: تاتنيوم جيم /ايمن | C179: 523 | D179: محمد حسن
A180: 524 | B180: تاتينيوم كريم | C180: 524 | D180: محمد حسن
A181: 525 | B181: تايم جيم | C181: 525 | D181: محمد حسن
A182: 526 | B182: حاتم جيم | C182: 526 | D182: محمد حسن
A183: 527 | B183: حسن باور الاربعين | C183: 527 | D183: محمد حسن
A184: 528 | B184: حلوانى جيم | C184: 528 | D184: محمد حسن
A185: 529 | B185: حماده supplyment | C185: 529 | D185: محمد حسن
A186: 530 | B186: حماده بور جيم الفيوم | C186: 530 | D186: محمد حسن
A187: 531 | B187: روك جيم /شبرا احمد متولى | C187: 531 | D187: محمد حسن
A188: 532 | B188: سمارت الميرغنى | C188: 532 | D188: محمد حسن
A189: 533 | B189: سوبر انفنتى النعام | C189: 533 | D189: محمد حسن
A190: 534 | B190: سولى ستور | C190: 534 | D190: محمد حسن
A191: 535 | B191: سيف روك | C191: 535 | D191: محمد حسن
A192: 536 | B192: شداد جيم | C192: 536 | D192: محمد حسن
A193: 537 | B193: طقوش اينرجى | C193: 537 | D193: محمد حسن
A194: 538 | B194: عاصم استيشن | C194: 538 | D194: محمد حسن
A195: 539 | B195: عباس تايتنيوم | C195: 539 | D195: محمد حسن
A196: 540 | B196: عبد الرحمن شيكاغو | C196: 540 | D196: محمد حسن
A197: 541 | B197: عبد الرحيم /عين شمس | C197: 541 | D197: محمد حسن
A198: 542 | B198: عبدالرحمن بى اند بى | C198: 542 | D198: محمد حسن
A199: 543 | B199: دراجون جيم | C199: 543 | D199: محمد حسن
A200: 544 | B200: علاء جولف | C200: 544 | D200: محمد حسن
A201: 545 | B201: عمرو اى جيم | C201: 545 | D201: محمد حسن
... 80 more rows

Sheet مخزن فرعي
A1: محمد حسن | N1: محمد همام | AA1: عبد المنعم
A3: التاريخ | B3: التصنيف | C3: ب واى ف | D3: ب واى ش | E3: واى ف | F3: واى ش | G3: ب جينر م | H3: ب جينر ش | I3: جينر م | J3: جينر ش | K3: ب كرياتين | L3: كرياتين | N3: التاريخ | O3: التصنيف | P3: ب واى ف | Q3: ب واى ش | R3: واى ف | S3: واى ش | T3: ب جينر م | U3: ب جينر ش | V3: جينر م | W3: جينر ش | X3: ب كرياتين | Y3: كرياتين | AA3: التاريخ | AB3: التصنيف | AC3: ب واى ف | AD3: ب واى ش | AE3: واى ف | AF3: واى ش | AG3: ب جينر م | AH3: ب جينر ش | AI3: جينر م | AJ3: جينر ش | AK3: ب كرياتين | AL3: كرياتين

Sheet سحب المندوبين
A1: رقم الفاتوره | B1: التاريخ | C1: اسم المندوب | D1: ب واى ف | E1: ب واى ش | F1: واى ف | G1: واى ش | H1: ب جينر ش | I1: ب جينر م | J1: جينر ش | K1: جينر م | L1: ب ك | M1: كرياتين | N1: ملاحظات
C2: محمد همام | G2: 20 | J2: 20 | M2: 20
C3: محمد حسن | G3: 20 | J3: 20 | M3: 20
C4: عبد المنعم | G4: 20 | J4: 20 | M4: 20
F10529: =SUBTOTAL(9,F57989,F2:G10528) -> 60 | J10529: =SUBTOTAL(9,#REF!) ->  | N10529: =SUBTOTAL(9,N2:N10528) -> 0
M10530: =SUBTOTAL(9,#REF!) -> 
F10535: =57+33 -> 90 | I10535: =72+17 -> 89
F10539: =47+33 -> 80 | I10539: 32
